Cogmind - Beta 12 @@@ ROGUE MODE // 2023.05.19 @ 20:42:01 Player: puncake Result: Destroyed by as-73551 with Assembled Rifle Performance ------------- Evolutions (0) 0 Regions Visited (2) 400 Robots Destroyed (6) 30 Value Destroyed (55) 55 Prototype IDs (0) 0 Alien Tech Used (0) 0 Bonus (0) 0 TOTAL SCORE: 485 Bonus ------- None Cogmind --------- Core Integrity 0/250 Matter 139/300 Energy 250/250 System Corruption 0% Temperature Cool (0) Movement Rolling (100) Location -10/Mines Parts ------- > --- POWER (1) -------- Ion Engine > --- PROPULSION (2) --- Compact Wheel Compact Wheel > --- UTILITY (2) ------ Small Storage Unit ECM Suite > --- WEAPON (2) ------- (None) > --- INVENTORY (8) ---- Light Treads Light Treads Small Laser Assault Rifle Peak State ------------ > --- POWER ------------ Light Ion Engine > --- PROPULSION ------- Aluminum Leg Aluminum Leg > --- UTILITY ---------- Small Storage Unit ECM Suite > --- WEAPON ----------- Assault Rifle Light Assault Rifle > --- INVENTORY -------- Ion Engine Light Treads Light Treads Compact Wheel Compact Wheel Small Laser Light Cannon Datajack [Rating: 7] Favorites ----------- Power Light Ion Engine Engine Light Ion Engine Propulsion Aluminum Leg Treads Light Treads Leg Aluminum Leg Wheel Compact Wheel Utility Small Storage Unit Device ECM Suite Storage Small Storage Unit Weapon Light Assault Rifle Ballistic Gun Light Assault Rifle Launcher Grenade Launcher Special Melee Weapon Datajack Build | -11 -10 -10 ------- Run | Jun Mat Min Slots Evolved . | . . . Power . | . . . Propulsion . | . . . Utility . | . . . Weapon . | . . . Parts Attached 14 | 7 . 7 Power 3 | 1 . 2 Engine 3 | 1 . 2 Core . | . . . Reactor . | . . . Propulsion 5 | 3 . 2 Treads 1 | 1 . . Leg 2 | 2 . . Wheel 2 | . . 2 Hover . | . . . Flight . | . . . Utility 2 | 1 . 1 Device 1 | . . 1 Storage 1 | 1 . . Processor . | . . . Hackware . | . . . Protection . | . . . Artifact . | . . . Weapon 4 | 2 . 2 Energy Gun . | . . . Energy Cannon . | . . . Ballistic Gun 2 | 2 . . Ballistic Cannon . | . . . Launcher 1 | . . 1 Special Weapon . | . . . Impact Weapon . | . . . Slashing Weapon . | . . . Piercing Weapon . | . . . Special Melee Weapon 1 | . . 1 Unidentified Prototypes . | . . . Parts Lost 6 | . . 6 Power 1 | . . 1 Propulsion 2 | . . 2 Utility . | . . . Weapon 3 | . . 3 Highest Loss Streak 4 | . . 4 To Critical Strikes . | . . . Average Slot Usage (%) 90 | . 85 92 Engine 14 | . 14 14 Leg 25 | . 28 24 Wheel 2 | . . 3 Device 7 | . . 11 Storage 14 | . 14 14 Ballistic Gun 23 | . 28 21 Launcher 2 | . . 3 Naked Turns . | . . . Heaviest Build 16 | 11 11 16 Greatest Support 32 | 20 20 32 Greatest Overweight (x) 4 | . . 4 Average Overweight (x) . | . . . Largest Inventory Capacity 8 | 8 8 8 Average Capacity 7 | 6 8 8 Most Carried 8 | 6 8 8 Average Carried 7 | 4 7 7 Final Capacity 8 | 8 8 8 Final Carried 8 | 6 8 4 Class Distribution -------------------- 100% | Mutant Dominant Class ---------------- Mutant | -10/Materials Mutant | -10/Mines Resources | -11 -10 -10 ----------- Run | Jun Mat Min Matter Collected 359 | 209 72 78 Remotely . | . . . Salvage Created 120 | . 36 84 Parts 10 | . 3 7 Haulers Intercepted . | . . . Recyclers Shooed 1 | . 1 . Parts Field Recycled . | . . . Retrieved Matter . | . . . Parts Self-Destructed . | . . . Prevented . | . . . Kills | -11 -10 -10 ------- Run | Jun Mat Min Combat Hostiles Destroyed 15 | . 3 12 Guns 5 | . 3 2 AOE 10 | . . 10 Classes Destroyed 3 | . 1 2 Builder 1 | . . 1 Swarmer 5 | . 3 2 Assembled 10 | . . 10 Best Kill Streak 11 | . 3 11 Combat Bots Only 6 | . 3 6 Max Kills in Single Turn 4 | . 1 4 Gunslinging . | . . . Exploded 4 | . . 4 Melee . | . . . Uniques/NPCs Destroyed . | . . . Combat | -11 -10 -10 -------- Run | Jun Mat Min Damage Taken 892 | . 90 802 Core 263 | . 7 256 Absorbed by Shields . | . . . Core Remaining (%) 100 | 100 . . Volleys Fired 31 | . 8 23 Largest 2 | . 2 2 Hottest 50 | . 40 50 Shots Fired 58 | . 16 42 Gun 44 | . 16 28 Cannon . | . . . Launcher 14 | . . 14 Special . | . . . Kinetic 44 | . 16 28 Thermal . | . . . Explosive 14 | . . 14 Electromagnetic . | . . . Robot Hit Streak 5 | . 5 4 Robot Miss Streak 4 | . 3 4 Penetration Max . | . . . Secondary Targets . | . . . Shots Hit Robots 28 | . 10 18 Core Hits 37 | . 6 31 Critical Kills . | . . . Critical Parts Destroyed . | . . . Critical Strikes . | . . . Melee Attacks . | . . . Impact . | . . . Slashing . | . . . Piercing . | . . . Sneak Attacks . | . . . Combat Hostiles . | . . . Follow-up Attacks . | . . . Damage Inflicted 869 | . 105 764 Guns 209 | . 105 104 Cannons . | . . . Explosions 660 | . . 660 Melee . | . . . Ramming . | . . . Kinetic 209 | . 105 104 Thermal . | . . . Explosive 660 | . . 660 Electromagnetic . | . . . Impact . | . . . Slashing . | . . . Piercing . | . . . Highest Corruption . | . . . Average Corruption . | . . . Corruption Purged . | . . . Corruption Blocked . | . . . Overload Shots . | . . . Overflow Damage 4 | . . 4 Projectiles . | . . . Explosions 4 | . . 4 Melee . | . . . Knockbacks . | . . . Impact . | . . . Kinetic . | . . . Secondary . | . . . Self-Inflicted Damage 121 | . . 121 Shots 8 | . . 8 Rammed . | . . . Targets Rammed . | . . . Kicked . | . . . Crushed . | . . . Highest Temperature 20 | . . 20 Average Temperature 8 | . . 8 Received Heat Transfer . | . . . Siege Activations . | . . . Robots Corrupted . | . . . Combat Hostiles . | . . . Parts Fried . | . . . Impact Corruptions . | . . . Robots Melted . | . . . Combat Hostiles . | . . . Parts Melted . | . . . Heat Transferred . | . . . Parts Sabotaged . | . . . Parts Stolen . | . . . Parts Stripped . | . . . Power Chain Reactions . | . . . Missiles Intercepted . | . . . Alert | -11 -10 -10 ------- Run | Jun Mat Min Peak Influence 170 | . 106 170 Initial 40 | . . 40 Average 73 | . 34 104 Maximum Alert Level . | . . . Low Security (%) 100 | 100 100 100 Level 1 . | . . . Level 2 . | . . . Level 3 . | . . . Level 4 . | . . . Level 5 . | . . . High Security . | . . . Max Security . | . . . Squads Dispatched . | . . . Investigation . | . . . Extermination . | . . . Reinforcement . | . . . Assault . | . . . Garrison . | . . . Intercept . | . . . Searches Triggered . | . . . Construction Impeded . | . . . Haulers Reinforced . | . . . Active Scanning Responses . | . . . Cargo Convoy Interrupts . | . . . Stealth | -11 -10 -10 --------- Run | Jun Mat Min Distress Signals . | . . . Communications Jammed . | . . . Distress Signals . | . . . Times Spotted 26 | . 4 22 Peak Tracking Total 4 | . 3 4 Tactical Retreats 4 | . 1 3 Traps | -11 -10 -10 ------- Run | Jun Mat Min Traps Triggered . | . . . Indirectly . | . . . Trap Hack Attempts . | . . . Triggered . | . . . Disarmed . | . . . Reprogrammed . | . . . Reused . | . . . Traps Extracted . | . . . Installed . | . . . Triggered . | . . . Machines | -11 -10 -10 ---------- Run | Jun Mat Min Machines Disabled . | . . . Max in Single Turn . | . . . Machines Repaired . | . . . Machines Sabotaged . | . . . Overloaded Fab Kills . | . . . Hacking | -11 -10 -10 --------- Run | Jun Mat Min Machines Accessed 3 | . 3 . Terminals 3 | . 3 . Fabricators . | . . . Repair Stations . | . . . Recycling Units . | . . . Scanalyzers . | . . . Garrison Access . | . . . Total Hacks 5 | . 5 . Successful 3 | . 3 . Failed 2 | . 2 . Catastrophic . | . . . Database Lockouts . | . . . Manual . | . . . Terminals 5 | . 5 . Fabricators . | . . . Repair Stations . | . . . Recycling Units . | . . . Scanalyzers . | . . . Garrison Access . | . . . Terminal Hacks 3 | . 3 . Branch Access Points 1 | . 1 . Locate Traps 2 | . 2 . Fabricator Hacks . | . . . Repair Station Hacks . | . . . Recycling Unit Hacks . | . . . Scanalyzer . | . . . Garrison Access Hacks . | . . . Unauthorized Hacks . | . . . Terminals . | . . . Fabricators . | . . . Repair Stations . | . . . Recycling Units . | . . . Scanalyzers . | . . . Garrison Access . | . . . Data Cores Recovered . | . . . Used . | . . . Hacking Detections 2 | . 2 . Full Trace Events . | . . . Feedback Events . | . . . Feedback Blocked . | . . . Robot Schematics Acquired . | . . . Robots Built . | . . . Authchips . | . . . Time . | . . . Total Robot Build Rating . | . . . Part Schematics Acquired . | . . . Parts Built . | . . . Authchips . | . . . Time . | . . . Total Part Build Rating . | . . . Parts Repaired . | . . . Time . | . . . Parts Recycled . | . . . Recycled Matter . | . . . Retrieved Matter . | . . . Retrieved Components . | . . . Parts Scanalyzed . | . . . Part Schematics Acquired . | . . . Parts Damaged . | . . . Bothacking | -11 -10 -10 ------------ Run | Jun Mat Min Used RIF Installer . | . . . Robots Hacked . | . . . Non-combat . | . . . Combat . | . . . Robot Hacks Applied . | . . . Relay Couplers Released . | . . . Fabnet Peak Effective % . | . . . Robots Rewired . | . . . Allies Hacked . | . . . Hacks Repelled . | . . . Allies | -11 -10 -10 -------- Run | Jun Mat Min Total Allies . | . . . Largest Group . | . . . Highest-Rated Group . | . . . Highest-Rated Ally . | . . . Total Orders . | . . . Ally Attacks . | . . . Total Damage . | . . . Kills . | . . . Allies Corrupted . | . . . Allies Melted . | . . . Intel | -11 -10 -10 ------- Run | Jun Mat Min Robot Analysis Total . | . . . Derelict Logs Recovered 1 | . . 1 Drone Launches . | . . . Drone Recoveries . | . . . Exploration | -11 -10 -10 ------------- Run | Jun Mat Min Turns Passed 721 | 74 210 437 Spaces Moved 509 | 56 150 303 Core 19 | 18 . 1 Treads 3 | 3 . . Legs 438 | 35 150 253 Wheels 49 | . . 49 Hover . | . . . Flight . | . . . Fastest Speed 50 | 50 120 100 Average Speed 116 | 99 120 117 Slowest Speed 250 | 160 120 250 Overloaded Moves . | . . . Propulsion Burnouts . | . . . Robots Hopped . | . . . Cave-ins Triggered . | . . . Exploration Rate (%) 32 | 4 31 62 Regions Visited 2 Branch Regions 1 Pre-discovered Areas . | . . . Known Exits Taken 1 | . 1 . Unknown Exits Taken 1 | 1 . . Scrap Searched 1 | . . 1 Spaces Dug . | . . . Terrain Destroyed 93 | . . 93 Melee . | . . . Projectile . | . . . AOE 93 | . . 93 Terrain Rammed . | . . . Walls Destroyed . | . . . Machines Disabled . | . . . Actions | -11 -10 -10 --------- Run | Jun Mat Min Total 584 | 73 165 346 Wait 16 | . 6 10 Move 507 | 55 149 303 Hop . | . . . Pick Up 14 | 11 2 1 Fast Attach 2 | 1 . 1 Attach 9 | 5 . 4 Detach . | . . . Swap 3 | 1 . 2 Drop 2 | . . 2 Fire 31 | . 8 23 Melee . | . . . Ram . | . . . Kick . | . . . Crush . | . . . Escape Stasis . | . . . Rewire . | . . . Trap . | . . . Miscellaneous . | . . . Route ------- -11/Junkyard -10/Materials (discovered 2 exits: *Min x2) -10/Mines History --------- Turn | Location | Event 6 | -11/Junkyard | Discovered new exit (range 16) 75 | -11/Junkyard | Entered Materials 218 | -10/Materials | Identified exit to Mines 285 | -10/Materials | Entered Mines 304 | -10/Mines | Build established: Mutant 345 | -10/Mines | Met a Derelict bent on vengeance 495 | -10/Mines | Assembled infested the area 500 | -10/Mines | Assisted by a Guerilla fighting off Assembled 503 | -10/Mines | YI-UF0 nonchalantly dropped a Grenade Launcher on the ground 679 | -10/Mines | Core integrity fell below 50% 689 | -10/Mines | Core integrity fell below 20% 716 | -10/Mines | Lost 4 parts (2n2w) 722 | -10/Mines | Destroyed by as-73551 with Assembled Rifle Last Messages --------------- 00606_ Destroyed Lgt. Ion Engine. 00612_ The unstable cave ceiling collapses. 00613_ as-18118 destroyed. 00619_ The unstable cave ceiling collapses. 00620_ as-28880 destroyed. 00638_ The unstable cave ceiling collapses. 00639_ as-49302 destroyed. 00643_ The unstable cave ceiling collapses. 00645_ as-63303 destroyed. 00650_ Acquired 4 matter. 00654_ The unstable cave ceiling collapses. 00662_ Grenade Launcher destroyed. 00663_ Aluminum Leg destroyed. 00666_ The unstable cave ceiling collapses. 00668_ Aluminum Leg destroyed. 00678_ The unstable cave ceiling collapses. 00685_ Lgt. Assault Rifle destroyed. 00686_ as-73533 destroyed. 00719_ Datajack destroyed. 00721_ The unstable cave ceiling collapses. Map ----- +----------------------------------------------------+ | ?????????????? ???# #???????? ##???????????? | | ??????????????????# #????????? ###?????????? | | ??????????????????# #????????? ##????????? | | ??????????????????# #????????? #????????? | | ??????????????????# ########?? ##???????? | | ??????????????????# #??# ##??????? | | ??????????????????######### #?## #??????? | | ??????????????????????????# #?# #??????? | | ??????????????????????????# ### #??????? | | ??????????????????????????# #???????? | | ??????????????????????????#### #????????? | | ?????????????????????????????## ## ##????????? | | ??????????????????????????????## ##?????????????? | | ??????????????????????????????## #??????????????? | | ?????????????????????????????## #??????????????? | | ?????????????????????????????# #??????????????? | | ????????????????#######??????# #??????????????? | | ???????????????## ##?????# ##?????####????? | | ????????#####?## #?????# ####### ###### | | ???????## ### #?????# # # # | | ???????# #####?## ## | | ???????# ##?# | | ???????# ### ## # # | | ???????## a % ## | | ????????#### a #? | | ???????????## @ a ### # ###? | | ???????????## # ## ##??? | | ??????????## ##### # #???? | | ??????????# ##???##############???? | | ??????????# ##?????????????????????? | | ??????????## ## ## ##??????????????????????? | | ???????????########### ##???????????????????????? | | ?????????????????????####????????????????????????? | | ?????????????????????????????????????????????????? | | ?????????????????????????????????????????????????? | | | | | | | | | | | | | | | | | | | | | | | | | | | | | | | +----------------------------------------------------+ Best States ------------- Heat Dissipation 25 Energy Generation 10 Energy Capacity 250 Matter Stores 300 Matter Capacity 300 Sight Range 16 Terrain Scan Density 10 ECM Strength 1 Evasion (%) 55 Recoil Reduction 1 Item Schematics ----------------- None Robot Schematics ------------------ None Fabricated ------------ Nothing Alien Tech Used ----------------- None Achievements -------------- None Challenges ------------ None Game ------ Seed TractorDefenseWarhead Manual? 0 Play Time 00:08:37 Cumulative 27.7 hours Start 2023.05.19 @ 20:34:39 End 2023.05.19 @ 20:42:01 Sessions 1 Manual Loads 0 Difficulty Rogue Special Mode None Game No. 37 Rogue 37 Adventurer 0 Explorer 0 Win Type - Total 0 Types 0/0/0/0/0/0/0/0/0 Lore% 17 Gallery% 39 Achievement% 26 Wizard Run 0 Options --------- ASCII 1 Keyboard 0 Movement Mouse Keybinds 0 Fullscreen 1 Font 18/X11 Map View 76x50 Tactical HUD 1 Map Filters NONE Filters NONE Steam 1 RUN: 718eb618-c8a0-40d6-a57f-c77bc9222a9c